[Event "NJSK 2024 Cm"]
[Site "Groningen, Netherlands"]
[Date "2024.05.01"]
[Round "5.2"]
[White "Luong, Thao"]
[Black "Jorritsma, Eli Alia"]
[Result "0-1"]
[TimeControl "90min/40moves + 30min + 30sec/move"]
[WhiteElo "1687"]
[BlackElo "1777"]

1. e4 {[%clk 01:30:58]} {[%emt 00:00:02]} g6 {[%clk 01:30:53]} {[%emt
00:00:07]} 2. d4 {[%clk 01:31:25]} {[%emt 00:00:03]} Bg7 {[%clk 01:31:18]}
{[%emt 00:00:05]} 3. Nc3 {[%clk 01:31:24]} {[%emt 00:00:31]} d6 {[%clk
01:31:27]} {[%emt 00:00:20]} 4. f4 {[%clk 01:31:22]} {[%emt 00:00:32]} Nd7
{[%clk 01:31:08]} {[%emt 00:00:50]} 5. Nf3 {[%clk 01:31:12]} {[%emt 00:00:39]}
a6 {[%clk 01:30:41]} {[%emt 00:00:57]} 6. a4 {[%clk 01:30:59]} {[%emt
00:00:42]} c5 {[%clk 01:28:45]} {[%emt 00:02:27]} 7. d5 {[%clk 01:28:52]}
{[%emt 00:02:36]} Ngf6 {[%clk 01:27:02]} {[%emt 00:02:14]} 8. Bd3 {[%clk
01:28:24]} {[%emt 00:00:58]} O-O {[%clk 01:26:48]} {[%emt 00:00:44]} 9. O-O
{[%clk 01:28:16]} {[%emt 00:00:38]} Qb6 {[%clk 01:21:27]} {[%emt 00:05:51]} 10.
a5 {[%clk 01:26:45]} {[%emt 00:02:01]} Qa7 {[%clk 01:20:49]} {[%emt 00:01:07]}
11. Re1 {[%clk 01:24:01]} {[%emt 00:03:14]} Ng4 {[%clk 01:19:48]} {[%emt
00:01:32]} 12. Bc4 {[%clk 01:21:09]} {[%emt 00:03:22]} b5 {[%clk 01:15:42]}
{[%emt 00:04:36]} 13. axb6 {[%clk 01:20:33]} {[%emt 00:01:06]} Nxb6 {[%clk
01:15:27]} {[%emt 00:00:44]} 14. Bb5 {[%clk 01:17:15]} {[%emt 00:03:49]} c4
{[%clk 01:09:42]} {[%emt 00:06:16]} 15. Nd4 {[%clk 01:08:53]} {[%emt 00:08:50]}
Na4 {[%clk 01:04:34]} {[%emt 00:05:38]} 16. e5 {[%clk 00:57:28]} {[%emt
00:11:55]} axb5 {[%clk 01:00:43]} {[%emt 00:04:22]} 17. Ncxb5 {[%clk 00:54:13]}
{[%emt 00:03:45]} Qb6 {[%clk 00:53:47]} {[%emt 00:07:26]} 18. c3 {[%clk
00:45:47]} {[%emt 00:08:55]} Nxc3 {[%clk 00:49:44]} {[%emt 00:04:34]} 19. bxc3
{[%clk 00:39:31]} {[%emt 00:06:45]} Rxa1 {[%clk 00:50:01]} {[%emt 00:00:14]} 20.
Na3 {[%clk 00:37:31]} {[%emt 00:02:30]} dxe5 {[%clk 00:47:22]} {[%emt
00:03:08]} 21. fxe5 {[%clk 00:37:12]} {[%emt 00:00:48]} Nxe5 {[%clk 00:47:30]}
{[%emt 00:00:24]} 22. Qe2 {[%clk 00:32:42]} {[%emt 00:04:59]} Nd3 {[%clk
00:44:21]} {[%emt 00:03:39]} 23. Nxc4 {[%clk 00:32:20]} {[%emt 00:00:51]} Bxd4+
{[%clk 00:44:08]} {[%emt 00:00:45]} 24. cxd4 {[%clk 00:30:31]} {[%emt
00:02:18]} Qxd4+ {[%clk 00:44:28]} {[%emt 00:00:10]} 25. Be3 {[%clk 00:29:30]}
{[%emt 00:01:32]} Rxe1+ {[%clk 00:44:16]} {[%emt 00:00:42]} 26. Qxe1 {[%clk
00:29:41]} {[%emt 00:00:18]} Qxc4 {[%clk 00:44:17]} {[%emt 00:00:29]} 27. Qa1
{[%clk 00:29:16]} {[%emt 00:00:54]} f6 {[%clk 00:41:10]} {[%emt 00:03:38]} 28.
Qa7 {[%clk 00:28:53]} {[%emt 00:00:53]} Qb4 {[%clk 00:41:09]} {[%emt 00:00:32]}
29. h3 {[%clk 00:27:47]} {[%emt 00:01:36]} Bf5 {[%clk 00:39:28]} {[%emt
00:02:10]} 30. Bh6 {[%clk 00:27:42]} {[%emt 00:00:35]} Qb1+ {[%clk 00:39:36]}
{[%emt 00:00:23]} 31. Kh2 {[%clk 00:27:38]} {[%emt 00:00:33]} Qb8+ {[%clk
00:40:00]} {[%emt 00:00:07]} 32. Qxb8 {[%clk 00:27:40]} {[%emt 00:00:27]} Rxb8
{[%clk 00:40:26]} {[%emt 00:00:04]} 33. d6 {[%clk 00:27:54]} {[%emt 00:00:16]}
exd6 {[%clk 00:40:47]} {[%emt 00:00:09]} 34. g4 {[%clk 00:27:58]} {[%emt
00:00:26]} Be4 {[%clk 00:40:46]} {[%emt 00:00:31]} 35. g5 {[%clk 00:28:02]}
{[%emt 00:00:26]} f5 {[%clk 00:41:06]} {[%emt 00:00:11]} 36. Bg7 {[%clk
00:28:08]} {[%emt 00:00:24]} Kxg7 {[%clk 00:41:21]} {[%emt 00:00:14]} 37. h4
{[%clk 00:28:30]} {[%emt 00:00:08]} Rb2+ {[%clk 00:41:44]} {[%emt 00:00:07]} 38.
Kg1 {[%clk 00:28:49]} {[%emt 00:00:11]} Bf3 {[%clk 00:41:53]} {[%emt 00:00:21]}
39. h5 {[%clk 00:29:07]} {[%emt 00:00:13]} gxh5 {[%clk 00:42:18]} {[%emt
00:00:05]} 40. g6 {[%clk 00:29:23]} {[%emt 00:00:13]} hxg6 {[%clk 00:42:44]}
{[%emt 00:00:04]} 41. Kf1 {[%clk 00:29:38]} {[%emt 00:00:15]} Rb1# {[%clk
00:43:12]} {[%emt 00:00:03]} 0-1

[Event "NJSK 2024 Cm"]
[Site "Groningen, Netherlands"]
[Date "2024.05.01"]
[Round "5.3"]
[White "Hardeman, Imara"]
[Black "Elangkumaran, Anumitra"]
[Result "1/2-1/2"]
[TimeControl "90min/40moves + 30min + 30sec/move"]
[WhiteElo "1676"]
[BlackElo "1605"]

1. e4 {[%clk 01:30:59]} e5 {[%clk 01:30:57]} {[%emt 00:00:04]} 2. Nf3 {[%clk
01:31:25]} {[%emt 00:00:03]} Nc6 {[%clk 01:31:17]} {[%emt 00:00:10]} 3. c3
{[%clk 01:31:53]} {[%emt 00:00:03]} d5 {[%clk 01:31:43]} {[%emt 00:00:04]} 4.
Qa4 {[%clk 01:32:18]} {[%emt 00:00:05]} f6 {[%clk 01:31:52]} {[%emt 00:00:20]}
5. d3 {[%emt 00:00:05]} Nge7 {[%clk 01:31:05]} {[%emt 00:01:16]} 6. Be2 {[%clk
01:33:07]} {[%emt 00:00:07]} Be6 {[%clk 01:29:35]} {[%emt 00:02:00]} 7. O-O
{[%clk 01:31:45]} {[%emt 00:01:52]} Qd7 {[%clk 01:26:14]} {[%emt 00:03:52]} 8.
Nbd2 {[%clk 01:26:40]} {[%emt 00:05:35]} O-O-O {[%clk 01:22:09]} {[%emt
00:04:34]} 9. b4 {[%clk 01:22:15]} {[%emt 00:04:55]} a6 {[%clk 01:14:57]}
{[%emt 00:07:42]} 10. Qc2 {[%clk 01:20:12]} {[%emt 00:02:33]} Ng6 {[%clk
01:09:46]} {[%emt 00:05:40]} 11. Nb3 {[%clk 01:18:01]} {[%emt 00:02:42]} Nf4
{[%clk 01:06:14]} {[%emt 00:04:02]} 12. Nc5 {[%clk 01:16:10]} {[%emt 00:02:22]}
Nxe2+ {[%clk 01:05:00]} {[%emt 00:01:43]} 13. Qxe2 {[%clk 01:16:32]} {[%emt
00:00:09]} Bxc5 {[%clk 01:04:52]} {[%emt 00:00:37]} 14. bxc5 {[%clk 01:16:46]}
{[%emt 00:00:17]} dxe4 {[%clk 01:02:02]} {[%emt 00:03:19]} 15. dxe4 {[%clk
01:16:57]} {[%emt 00:00:19]} Qd3 {[%clk 00:59:25]} {[%emt 00:03:07]} 16. Qe1
{[%clk 01:16:26]} {[%emt 00:01:01]} Bg4 {[%clk 00:56:49]} {[%emt 00:03:06]} 17.
Qe3 {[%clk 01:09:02]} {[%emt 00:07:54]} Bxf3 {[%clk 00:53:21]} {[%emt
00:03:57]} 18. gxf3 {[%clk 01:08:57]} {[%emt 00:00:35]} Qxe3 {[%clk 00:52:33]}
{[%emt 00:01:18]} 19. Bxe3 {[%clk 01:09:14]} {[%emt 00:00:14]} Ne7 {[%clk
00:50:15]} {[%emt 00:02:47]} 20. Rfd1 {[%clk 01:05:48]} {[%emt 00:03:56]} f5
{[%clk 00:48:52]} {[%emt 00:01:54]} 21. Bg5 {[%clk 01:05:28]} {[%emt 00:00:50]}
Rxd1+ {[%clk 00:47:36]} {[%emt 00:01:45]} 22. Rxd1 {[%clk 01:05:51]} {[%emt
00:00:08]} Nc6 {[%clk 00:46:18]} {[%emt 00:01:48]} 23. exf5 {[%clk 01:03:43]}
{[%emt 00:02:38]} Rf8 {[%clk 00:45:44]} {[%emt 00:01:04]} 24. Kg2 {[%clk
01:02:18]} {[%emt 00:01:55]} Rxf5 {[%clk 00:45:36]} {[%emt 00:00:38]} 25. Be3
{[%clk 01:02:35]} {[%emt 00:00:14]} Rf7 {[%clk 00:42:26]} {[%emt 00:03:40]} 26.
Rd5 {[%clk 00:59:57]} {[%emt 00:03:07]} Rd7 {[%clk 00:42:05]} {[%emt 00:00:50]}
27. Rxd7 {[%clk 00:59:46]} {[%emt 00:00:41]} Kxd7 {[%clk 00:42:26]} {[%emt
00:00:09]} 28. Kf1 {[%clk 00:59:41]} {[%emt 00:00:35]} Ke6 {[%clk 00:42:19]}
{[%emt 00:00:38]} 29. Ke2 {[%clk 00:59:45]} {[%emt 00:00:26]} Kd5 {[%clk
00:42:01]} {[%emt 00:00:47]} 30. Kd3 {[%clk 00:59:58]} {[%emt 00:00:18]} Na5
{[%clk 00:41:31]} {[%emt 00:01:00]} 31. Bg5 {[%clk 00:54:41]} {[%emt 00:05:47]}
Kxc5 {[%clk 00:40:44]} {[%emt 00:01:17]} 32. Bd8 {[%clk 00:54:35]} {[%emt
00:00:36]} Kd6 {[%clk 00:39:46]} {[%emt 00:01:27]} 33. Ke4 {[%clk 00:53:53]}
{[%emt 00:01:13]} Nc6 {[%clk 00:39:30]} {[%emt 00:00:45]} 34. Bh4 {[%clk
00:53:59]} {[%emt 00:00:25]} Ke6 {[%clk 00:38:32]} {[%emt 00:01:28]} 35. Bg3
{[%clk 00:53:45]} {[%emt 00:00:43]} b5 {[%clk 00:37:25]} {[%emt 00:01:38]} 36.
a3 {[%clk 00:51:28]} {[%emt 00:02:47]} h5 {[%clk 00:33:44]} {[%emt 00:04:10]}
37. h4 {[%clk 00:50:45]} {[%emt 00:01:14]} g6 {[%clk 00:33:07]} {[%emt
00:01:07]} 38. Bh2 {[%clk 00:50:20]} {[%emt 00:00:54]} Kf7 {[%clk 00:31:19]}
{[%emt 00:02:18]} 39. Bxe5 {[%clk 00:49:50]} {[%emt 00:01:01]} Nxe5 {[%clk
00:31:36]} {[%emt 00:00:12]} 40. Kxe5 {[%clk 00:50:17]} {[%emt 00:00:04]} g5
{[%clk 00:31:13]} {[%emt 00:00:53]} 41. hxg5 {[%clk 00:50:25]} {[%emt
00:00:22]} Kg6 {[%clk 00:31:32]} {[%emt 00:00:10]} 42. Kf4 {[%clk 00:50:37]}
{[%emt 00:00:19]} h4 {[%clk 00:31:43]} {[%emt 00:00:18]} 43. Kg4 {[%clk
00:51:02]} {[%emt 00:00:05]} h3 {[%clk 00:32:08]} {[%emt 00:00:05]} 44. Kxh3
{[%clk 00:51:30]} {[%emt 00:00:03]} Kxg5 {[%clk 00:32:28]} {[%emt 00:00:10]} 45.
Kg3 {[%clk 00:51:50]} {[%emt 00:00:10]} Kf5 {[%clk 00:32:40]} {[%emt 00:00:18]}
46. f4 {[%clk 00:52:03]} {[%emt 00:00:17]} c5 {[%clk 00:32:24]} {[%emt
00:00:46]} 47. Kf3 {[%clk 00:51:58]} {[%emt 00:00:36]} a5 {[%clk 00:32:49]}
{[%emt 00:00:05]} 48. Ke3 {[%clk 00:51:25]} {[%emt 00:01:02]} b4 {[%clk
00:32:35]} {[%emt 00:00:44]} 49. cxb4 {[%clk 00:39:20]} {[%emt 00:12:36]} cxb4
{[%clk 00:29:12]} {[%emt 00:03:52]} 50. axb4 {[%clk 00:39:09]} {[%emt
00:00:41]} axb4 {[%clk 00:29:28]} {[%emt 00:00:13]} 51. Kd3 {[%clk 00:39:10]}
{[%emt 00:00:30]} Kxf4 {[%clk 00:29:48]} {[%emt 00:00:09]} 52. Kc4 {[%clk
00:39:37]} {[%emt 00:00:04]} Kf3 {[%clk 00:30:09]} {[%emt 00:00:09]} 53. Kxb4
{[%clk 00:40:03]} {[%emt 00:00:05]} Kxf2 {[%clk 00:30:30]} {[%emt 00:00:08]}
1/2-1/2

[Event "NJSK 2024 Cm"]
[Site "Groningen, Netherlands"]
[Date "2024.05.01"]
[Round "5.4"]
[White "Regterschot, Frederieke"]
[Black "Koorevaar, Sarah-Joy"]
[Result "0-1"]
[TimeControl "90min/40moves + 30min + 30sec/move"]
[WhiteElo "1292"]
[BlackElo "1544"]

1. g3 {[%clk 01:30:58]} {[%emt 00:00:01]} d5 {[%clk 01:30:46]} {[%emt
00:00:15]} 2. Bg2 {[%clk 01:31:20]} {[%emt 00:00:08]} e5 {[%clk 01:31:10]}
{[%emt 00:00:06]} 3. d3 {[%clk 01:31:43]} {[%emt 00:00:06]} Nc6 {[%clk
01:31:05]} {[%emt 00:00:35]} 4. Nf3 {[%clk 01:31:59]} {[%emt 00:00:15]} f6
{[%clk 01:29:08]} {[%emt 00:02:27]} 5. Nbd2 {[%clk 01:29:54]} {[%emt 00:02:35]}
Be6 {[%clk 01:27:48]} {[%emt 00:01:50]} 6. O-O {[%clk 01:29:59]} {[%emt
00:00:25]} Qd7 {[%clk 01:28:11]} {[%emt 00:00:07]} 7. e4 {[%clk 01:29:54]}
{[%emt 00:00:34]} d4 {[%clk 01:25:26]} {[%emt 00:03:16]} 8. c3 {[%clk
01:29:21]} {[%emt 00:01:02]} O-O-O {[%clk 01:23:24]} {[%emt 00:02:32]} 9. Nb3
{[%clk 01:29:17]} {[%emt 00:00:35]} dxc3 {[%clk 01:21:17]} {[%emt 00:02:36]} 10.
bxc3 {[%clk 01:28:15]} {[%emt 00:01:32]} Qxd3 {[%clk 01:21:04]} {[%emt
00:00:43]} 11. Qxd3 {[%clk 01:28:24]} {[%emt 00:00:22]} Rxd3 {[%clk 01:21:28]}
{[%emt 00:00:05]} 12. Bb2 {[%clk 01:27:45]} {[%emt 00:01:09]} Nh6 {[%clk
01:17:49]} {[%emt 00:04:09]} 13. Ne1 {[%clk 01:27:18]} {[%emt 00:00:58]} Rd7
{[%clk 01:16:50]} {[%emt 00:01:29]} 14. f3 {[%clk 01:26:31]} {[%emt 00:01:16]}
Bc4 {[%clk 01:14:59]} {[%emt 00:02:20]} 15. Bh3 {[%clk 01:24:53]} {[%emt
00:02:08]} f5 {[%clk 01:13:03]} {[%emt 00:02:27]} 16. Rf2 {[%clk 01:21:25]}
{[%emt 00:03:58]} Bxb3 {[%clk 01:13:21]} {[%emt 00:00:12]} 17. axb3 {[%clk
01:21:49]} {[%emt 00:00:06]} Bc5 {[%clk 01:13:45]} {[%emt 00:00:06]} 18. b4
{[%clk 01:20:47]} {[%emt 00:01:33]} Bxf2+ {[%clk 01:14:04]} {[%emt 00:00:10]}
19. Kxf2 {[%emt 00:00:09]} Rd2+ {[%clk 01:14:28]} {[%emt 00:00:04]} 20. Kg1
{[%clk 01:21:10]} {[%emt 00:00:30]} Rxb2 {[%clk 01:14:51]} {[%emt 00:00:08]} 21.
exf5 {[%clk 01:21:35]} {[%emt 00:00:04]} Kb8 {[%clk 01:13:50]} {[%emt
00:01:32]} 22. Nd3 {[%clk 01:21:44]} {[%emt 00:00:21]} Rd2 {[%clk 01:13:08]}
{[%emt 00:01:11]} 23. Nc5 {[%clk 01:21:16]} {[%emt 00:00:58]} Rhd8 {[%clk
01:13:19]} {[%emt 00:00:19]} 24. Ra3 {[%clk 01:19:40]} {[%emt 00:02:07]} Rd1+
{[%clk 01:12:03]} {[%emt 00:01:45]} 25. Kf2 {[%clk 01:19:32]} {[%emt 00:00:38]}
R8d2+ {[%clk 01:12:18]} {[%emt 00:00:15]} 26. Ke3 {[%clk 01:19:51]} {[%emt
00:00:12]} Rxh2 {[%clk 01:12:37]} {[%emt 00:00:10]} 27. Bg4 {[%clk 01:19:49]}
{[%emt 00:00:33]} Re1+ {[%clk 01:11:43]} {[%emt 00:01:23]} 28. Kd3 {[%clk
01:20:05]} {[%emt 00:00:14]} Nxg4 {[%clk 01:12:06]} {[%emt 00:00:07]} 29. fxg4
{[%clk 01:20:27]} {[%emt 00:00:08]} Rg2 {[%clk 01:12:08]} {[%emt 00:00:28]} 30.
b5 {[%clk 01:20:32]} {[%emt 00:00:25]} Ne7 {[%clk 01:05:46]} {[%emt 00:06:51]}
31. Ra4 {[%clk 01:19:28]} {[%emt 00:01:36]} Rxg3+ {[%clk 01:04:44]} {[%emt
00:01:31]} 32. Kd2 {[%clk 01:19:52]} {[%emt 00:00:07]} Ree3 {[%clk 01:04:39]}
{[%emt 00:00:34]} 33. Rc4 {[%clk 01:18:32]} {[%emt 00:01:50]} Nd5 {[%clk
01:03:17]} {[%emt 00:01:52]} 34. Na4 {[%clk 01:16:11]} {[%emt 00:02:51]} Ref3
{[%clk 01:00:47]} {[%emt 00:02:59]} 35. Re4 {[%clk 01:15:14]} {[%emt 00:01:28]}
Rg2+ {[%clk 00:58:29]} {[%emt 00:02:47]} 36. Re2 {[%clk 01:13:58]} {[%emt
00:01:46]} Rxe2+ {[%clk 00:58:04]} {[%emt 00:00:56]} 37. Kxe2 {[%clk 01:14:17]}
{[%emt 00:00:10]} Rf4 {[%clk 00:57:50]} {[%emt 00:00:44]} 38. Nc5 {[%clk
01:14:09]} {[%emt 00:00:39]} Kc8 {[%clk 00:57:25]} {[%emt 00:00:55]} 39. Nd3
{[%clk 01:14:07]} {[%emt 00:00:31]} Re4+ {[%clk 00:57:35]} {[%emt 00:00:20]} 40.
Kd2 {[%clk 01:14:22]} {[%emt 00:00:16]} Nf4 {[%clk 00:57:06]} {[%emt 00:00:58]}
41. Nxf4 {[%clk 01:14:29]} {[%emt 00:00:23]} exf4 {[%clk 00:57:26]} {[%emt
00:00:10]} 42. b6 {[%clk 01:14:52]} {[%emt 00:00:07]} axb6 {[%clk 00:57:48]}
{[%emt 00:00:08]} 43. f6 {[%clk 01:15:13]} {[%emt 00:00:10]} gxf6 {[%clk
00:58:07]} {[%emt 00:00:10]} 44. g5 {[%clk 01:15:36]} {[%emt 00:00:07]} fxg5
{[%clk 00:58:17]} {[%emt 00:00:20]} 45. Kd3 {[%clk 01:15:54]} {[%emt 00:00:12]}
Re8 {[%emt 00:00:33]} 46. c4 {[%clk 01:16:10]} {[%emt 00:00:13]} f3 {[%clk
00:58:33]} {[%emt 00:00:12]} 47. c5 {[%clk 01:16:34]} {[%emt 00:00:07]} f2
{[%clk 00:58:39]} {[%emt 00:00:24]} 48. cxb6 {[%clk 01:16:47]} {[%emt
00:00:17]} f1=Q+ {[%clk 00:59:00]} {[%emt 00:00:09]} 49. Kd4 {[%clk 01:17:07]}
{[%emt 00:00:09]} Qf5 {[%clk 00:59:01]} {[%emt 00:00:29]} 50. bxc7 {[%clk
01:17:24]} {[%emt 00:00:13]} Re4+ {[%clk 00:59:25]} {[%emt 00:00:06]} 51. Kd3
{[%clk 01:17:46]} {[%emt 00:00:08]} Qf3+ {[%clk 00:59:50]} {[%emt 00:00:06]} 52.
Kc2 {[%clk 01:17:58]} {[%emt 00:00:18]} Re2+ {[%clk 01:00:15]} {[%emt
00:00:05]} 53. Kd1 {[%clk 01:18:04]} {[%emt 00:00:23]} Qf1# {[%clk 01:00:44]}
{[%emt 00:00:01]} 0-1

[Event "NJSK 2024 Cm"]
[Site "Groningen, Netherlands"]
[Date "2024.05.01"]
[Round "5.5"]
[White "Zhang, Jinchen"]
[Black "Vermeulen, Ilona"]
[Result "0-1"]
[TimeControl "90min/40moves + 30min + 30sec/move"]
[WhiteElo "1348"]
[BlackElo "1427"]

1. d4 {[%clk 01:30:56]} {[%emt 00:00:03]} d5 {[%clk 01:30:55]} {[%emt
00:00:07]} 2. c4 {[%clk 01:31:20]} {[%emt 00:00:06]} e6 {[%clk 01:31:03]}
{[%emt 00:00:22]} 3. Nc3 {[%clk 01:31:37]} {[%emt 00:00:13]} Nf6 {[%clk
01:30:48]} {[%emt 00:00:45]} 4. Bg5 {[%clk 01:31:53]} {[%emt 00:00:13]} Be7
{[%clk 01:29:42]} {[%emt 00:01:37]} 5. Nf3 {[%clk 01:31:41]} {[%emt 00:00:41]}
O-O {[%clk 01:23:53]} {[%emt 00:06:19]} 6. e3 {[%clk 01:30:48]} {[%emt
00:01:23]} Ne4 {[%clk 01:19:31]} {[%emt 00:04:53]} 7. Bxe7 {[%clk 01:30:19]}
{[%emt 00:00:58]} Qxe7 {[%clk 01:19:30]} {[%emt 00:00:32]} 8. Nxe4 {[%clk
01:29:03]} {[%emt 00:01:45]} dxe4 {[%clk 01:19:02]} {[%emt 00:00:59]} 9. Nd2
{[%emt 00:01:04]} e5 {[%clk 01:10:26]} {[%emt 00:09:05]} 10. c5 {[%clk
01:26:56]} {[%emt 00:02:04]} exd4 {[%clk 01:09:51]} {[%emt 00:01:05]} 11. exd4
{[%clk 01:26:51]} {[%emt 00:00:34]} e3 {[%clk 01:02:15]} {[%emt 00:08:06]} 12.
Nf3 {[%clk 01:26:20]} {[%emt 00:01:00]} Bg4 {[%clk 00:56:10]} {[%emt 00:06:37]}
13. Be2 {[%clk 01:23:15]} {[%emt 00:03:35]} exf2+ {[%clk 00:52:09]} {[%emt
00:04:30]} 14. Kxf2 {[%clk 01:23:29]} {[%emt 00:00:15]} Nc6 {[%emt 00:03:19]}
15. Re1 {[%clk 01:23:13]} {[%emt 00:00:44]} Bxf3 {[%clk 00:49:12]} {[%emt
00:00:41]} 16. Bxf3 {[%clk 01:23:32]} {[%emt 00:00:11]} Qh4+ {[%clk 00:48:51]}
{[%emt 00:00:51]} 17. Kg1 {[%clk 01:23:52]} {[%emt 00:00:10]} Rad8 {[%clk
00:44:41]} {[%emt 00:04:40]} 18. Bxc6 {[%clk 01:20:43]} {[%emt 00:03:39]} bxc6
{[%clk 00:42:35]} {[%emt 00:02:37]} 19. g3 {[%clk 01:20:06]} {[%emt 00:01:06]}
Qxd4+ {[%clk 00:40:28]} {[%emt 00:02:37]} 20. Qxd4 {[%clk 01:20:28]} {[%emt
00:00:08]} Rxd4 {[%clk 00:40:49]} {[%emt 00:00:09]} 21. Re7 {[%clk 01:20:21]}
{[%emt 00:00:37]} Rc8 {[%clk 00:38:38]} {[%emt 00:02:41]} 22. Rae1 {[%clk
01:20:15]} {[%emt 00:00:35]} Kf8 {[%clk 00:38:23]} {[%emt 00:00:46]} 23. R7e3
{[%clk 01:19:24]} {[%emt 00:01:20]} g6 {[%clk 00:36:44]} {[%emt 00:02:10]} 24.
Rb3 {[%clk 01:19:25]} {[%emt 00:00:29]} Ra4 {[%clk 00:35:41]} {[%emt 00:01:34]}
25. a3 {[%clk 01:19:27]} {[%emt 00:00:28]} Rc4 {[%clk 00:35:01]} {[%emt
00:01:10]} 26. Rb7 {[%clk 01:19:31]} {[%emt 00:00:25]} Rxc5 {[%clk 00:34:23]}
{[%emt 00:01:08]} 27. Rxa7 {[%clk 01:19:53]} {[%emt 00:00:08]} Rb5 {[%clk
00:33:50]} {[%emt 00:01:03]} 28. Rc1 {[%clk 01:17:48]} {[%emt 00:02:36]} Rxb2
{[%clk 00:31:19]} {[%emt 00:03:02]} 29. Rxc6 {[%clk 01:17:50]} {[%emt
00:00:28]} Ra2 {[%clk 00:31:09]} {[%emt 00:00:40]} 30. Rcxc7 {[%clk 01:16:13]}
{[%emt 00:02:07]} Rxc7 {[%clk 00:31:25]} {[%emt 00:00:13]} 31. Rxc7 {[%clk
01:16:42]} {[%emt 00:00:02]} Rxa3 {[%clk 00:31:42]} {[%emt 00:00:13]} 32. Rc2
{[%clk 01:16:57]} {[%emt 00:00:15]} Kg7 {[%clk 00:31:19]} {[%emt 00:00:52]} 33.
g4 {[%clk 01:17:05]} {[%emt 00:00:22]} f5 {[%clk 00:25:56]} {[%emt 00:05:54]}
34. g5 {[%clk 01:17:17]} {[%emt 00:00:18]} h5 {[%clk 00:24:14]} {[%emt
00:02:11]} 35. Rc7+ {[%clk 01:17:15]} {[%emt 00:00:32]} Kf8 {[%clk 00:24:32]}
{[%emt 00:00:12]} 36. Kg2 {[%clk 01:15:25]} {[%emt 00:02:20]} Re3 {[%clk
00:22:50]} {[%emt 00:02:13]} 37. Rc8+ {[%clk 01:13:51]} {[%emt 00:02:03]} Kf7
{[%clk 00:22:23]} {[%emt 00:00:57]} 38. Rc7+ {[%clk 01:13:58]} {[%emt
00:00:23]} Re7 {[%clk 00:22:23]} {[%emt 00:00:31]} 39. Rc6 {[%clk 01:13:32]}
{[%emt 00:00:55]} Re2+ {[%clk 00:21:51]} {[%emt 00:01:02]} 40. Kg1 {[%clk
01:11:22]} {[%emt 00:02:40]} h4 {[%clk 00:21:34]} {[%emt 00:00:48]} 41. Rf6+
{[%clk 01:11:22]} {[%emt 00:00:29]} Kg7 {[%clk 00:21:42]} {[%emt 00:00:22]} 42.
Ra6 {[%clk 01:11:20]} {[%emt 00:00:32]} Re5 {[%clk 00:21:05]} {[%emt 00:01:07]}
43. Ra7+ {[%clk 01:11:34]} {[%emt 00:00:17]} Kf8 {[%clk 00:21:20]} {[%emt
00:00:14]} 44. Ra8+ {[%clk 01:11:46]} {[%emt 00:00:19]} Kf7 {[%clk 00:21:24]}
{[%emt 00:00:25]} 45. Ra6 {[%clk 01:11:54]} {[%emt 00:00:22]} Re6 {[%clk
00:19:44]} {[%emt 00:02:11]} 46. Ra7+ {[%clk 01:11:14]} {[%emt 00:01:09]} Re7
{[%clk 00:19:54]} {[%emt 00:00:20]} 47. Rxe7+ {[%clk 01:10:22]} {[%emt
00:01:23]} Kxe7 {[%emt 00:00:12]} 48. Kf2 {[%clk 01:10:38]} {[%emt 00:00:09]}
Ke6 {[%clk 00:20:21]} {[%emt 00:00:25]} 49. Ke3 {[%clk 01:10:55]} {[%emt
00:00:12]} Ke5 {[%clk 00:19:28]} {[%emt 00:01:24]} 50. h3 {[%clk 01:10:04]}
{[%emt 00:01:21]} f4+ {[%clk 00:19:21]} {[%emt 00:00:37]} 51. Kf3 {[%clk
01:10:27]} {[%emt 00:00:07]} Kf5 {[%clk 00:19:30]} {[%emt 00:00:22]} 52. Kf2
{[%clk 01:10:17]} {[%emt 00:00:39]} Kxg5 {[%clk 00:19:41]} {[%emt 00:00:19]} 53.
Kg2 {[%clk 01:10:38]} {[%emt 00:00:10]} Kf5 {[%clk 00:19:51]} {[%emt 00:00:20]}
54. Kf2 {[%clk 01:10:30]} {[%emt 00:00:37]} Ke4 {[%clk 00:19:18]} {[%emt
00:01:03]} 55. Ke2 {[%clk 01:09:36]} {[%emt 00:01:25]} f3+ {[%clk 00:19:18]}
{[%emt 00:00:30]} 56. Kf2 {[%clk 01:09:54]} {[%emt 00:00:11]} Kf4 {[%clk
00:19:20]} {[%emt 00:00:28]} 57. Kf1 {[%clk 01:08:48]} {[%emt 00:01:36]} Kg3
{[%clk 00:19:29]} {[%emt 00:00:21]} 58. Kg1 {[%clk 01:09:08]} {[%emt 00:00:10]}
Kxh3 {[%clk 00:19:22]} {[%emt 00:00:36]} 59. Kh1 {[%clk 01:09:24]} {[%emt
00:00:15]} Kg3 {[%clk 00:19:33]} {[%emt 00:00:20]} 60. Kg1 {[%clk 01:09:39]}
{[%emt 00:00:14]} f2+ {[%clk 00:19:48]} {[%emt 00:00:15]} 61. Kf1 {[%clk
01:09:59]} {[%emt 00:00:10]} h3 {[%clk 00:19:56]} {[%emt 00:00:22]} 62. Ke2
{[%clk 01:10:21]} {[%emt 00:00:08]} Kg2 {[%clk 00:20:17]} {[%emt 00:00:09]} 63.
Ke3 {[%clk 01:10:38]} {[%emt 00:00:13]} f1=Q {[%emt 00:00:12]} 64. Ke4 {[%emt
00:00:06]} h2 {[%clk 00:20:11]} {[%emt 00:00:19]} 65. Ke5 {[%clk 01:10:58]}
{[%emt 00:00:09]} h1=Q {[%clk 00:20:26]} {[%emt 00:00:11]} 66. Ke4 {[%clk
01:11:15]} {[%emt 00:00:16]} Kh3+ {[%clk 00:20:51]} {[%emt 00:00:06]} 67. Kd4
{[%clk 01:11:31]} {[%emt 00:00:15]} Qf4+ {[%clk 00:21:04]} {[%emt 00:00:16]} 68.
Kc5 {[%clk 01:11:40]} {[%emt 00:00:21]} Qe5+ {[%clk 00:21:16]} {[%emt
00:00:18]} 69. Kc4 {[%clk 01:11:21]} {[%emt 00:00:49]} Qhd5+ {[%clk 00:21:37]}
{[%emt 00:00:09]} 70. Kb4 {[%clk 01:11:38]} {[%emt 00:00:13]} Qc5+ {[%clk
00:21:54]} {[%emt 00:00:13]} 71. Kb3 {[%clk 01:11:47]} {[%emt 00:00:20]} Qec3+
{[%clk 00:22:20]} {[%emt 00:00:05]} 72. Ka2 {[%clk 01:12:03]} {[%emt 00:00:14]}
Q5a3+ {[%clk 00:22:41]} {[%emt 00:00:10]} 73. Kb1 {[%clk 01:12:26]} {[%emt
00:00:07]} Qab2# {[%clk 00:22:35]} {[%emt 00:00:05]} 0-1